Workbook

Sheet Operators & T F
A1: Description | B1: Operator | C1: Example 1 | D1: Resulting value | E1: Example 2 | F1: Resulting value | G1: Item 1 | H1: Item 2 | I1: Item 3 | J1: Item 4
A2: equal to | B2: = | C2: ="="&G2&TRIM($B2)&H2 -> =43=12 | E2: =Rad=rad | G2: 43 | H2: 12 | I2: Rad | J2: rad
A3: Not equal to | B3: <> | C3: =43<>12 | E3: =Rad<>rad | G3: 43 | H3: 12 | I3: Rad | J3: rad
A4: Greater than | B4: > | C4: =43>12 | E4: =12>43 | G4: 43 | H4: 12 | I4: 12 | J4: 43
A5: Less than | B5: < | C5: =43<12 | E5: =12<43 | G5: 43 | H5: 12 | I5: 12 | J5: 43
A6: Greater than or equal to | B6: >= | C6: =43>=42 | E6: =43>=42 | G6: 43 | H6: 42 | I6: 43 | J6: 42
A7: Less than or equal to | B7: <= | C7: =43<=42 | E7: =43<=42 | G7: 43 | H7: 42 | I7: 43 | J7: 42
A9: Text with Operators (Alphabetic). Text is not case-sensitive
A10: Greater than | B10: > | C10: ="="&E10&TRIM($B10)&F10 -> =Rad>Cool | E10: Rad | F10: Cool
A11: Less than | B11: < | C11: ="="&E11&TRIM($B11)&F11 -> =Rad<Cool | E11: Rad | F11: Cool
A13: Names with Operators
E14: Rad | F14: Cool
A15: Greater than | B15: > | C15: ="="&rad&TRIM($B15)&cool -> =43>15 | E15: 43 | F15: 15
A17: Dates in cells are numbers. Dates in formulas are math expressions (=1/12/1931)
A18: Greater than | B18: > | C18: ="="&E18&TRIM($B18)&F18 -> =21335>26335 | E18: 1958-05-30 | F18: 1972-02-06
A19: Greater than | B19: > | C19: =1/12/1931

Sheet Operators & T F (an)
A1: Description | B1: Operator | C1: Example 1 | D1: Resulting value | E1: Example 2 | F1: Resulting value | G1: Item 1 | H1: Item 2 | I1: Item 3 | J1: Item 4
A2: equal to | B2: = | C2: ="="&G2&TRIM($B2)&H2 -> =43=12 | D2: =G2=H2 -> FALSE | E2: =Rad=rad | F2: =I2=J2 -> TRUE | G2: 43 | H2: 12 | I2: Rad | J2: rad
A3: Not equal to | B3: <> | C3: =43<>12 | D3: =G3<>H3 -> TRUE | E3: =Rad<>rad | F3: =I3<>J3 -> FALSE | G3: 43 | H3: 12 | I3: Rad | J3: rad
A4: Greater than | B4: > | C4: =43>12 | D4: =G4>H4 -> TRUE | E4: =12>43 | F4: =I4>J4 -> FALSE | G4: 43 | H4: 12 | I4: 12 | J4: 43
A5: Less than | B5: < | C5: =43<12 | D5: =G5<H5 -> FALSE | E5: =12<43 | F5: =I5<J5 -> TRUE | G5: 43 | H5: 12 | I5: 12 | J5: 43
A6: Greater than or equal to | B6: >= | C6: =43>=42 | D6: =G6>=H6 -> TRUE | E6: =43>=42 | F6: =I6>=J6 -> TRUE | G6: 43 | H6: 42 | I6: 43 | J6: 42
A7: Less than or equal to | B7: <= | C7: =43<=42 | D7: =G7<=H7 -> FALSE | E7: =43<=42 | F7: =I7<=J7 -> FALSE | G7: 43 | H7: 42 | I7: 43 | J7: 42
A9: Text with Operators (Alphabetic). Text is not case-sensitive
A10: Greater than | B10: > | C10: ="="&E10&TRIM($B10)&F10 -> =Rad>Cool | D10: =E10>F10 -> TRUE | E10: Rad | F10: Cool
A11: Less than | B11: < | C11: ="="&E11&TRIM($B11)&F11 -> =Rad<Cool | D11: =E11<F11 -> FALSE | E11: Rad | F11: Cool
A13: Names with Operators
E14: Rad | F14: Cool
A15: Greater than | B15: > | C15: ="="&rad&TRIM($B15)&cool -> =43>15 | D15: =rad>cool -> TRUE | E15: 43 | F15: 15
A17: Dates in cells are numbers. Dates in formulas are math expressions (=1/12/1931)
A18: Greater than | B18: > | C18: ="="&E18&TRIM($B18)&F18 -> =21335>26335 | D18: =E18>F18 -> FALSE | E18: 1958-05-30 | F18: 1972-02-06
A19: Greater than | B19: > | C19: =1/12/1931 | D19: =1/12/1931 -> 4.315553254e-05

Sheet IF
A1: IF function: Logical Test that evaluates to TRUE or FALSE, What to put in cell if TRUE, What to put in cell if FALSE
A3: TRUE / FALSE (Boolean Logic) examples:
A4: Revenue: | B4: 5000 | D4: Does DR = CR? | E4: DR | F4: CR
A5: Hurdle to get bonus: | B5: 4000 | E5: 500 | F5: 499.99
A6: Is Revenue greater than Hurdle?
D7: Credit Score | E7: 2
A8: Text | B8: Excel is fun! | D8: Credit Score Hurdle | E8: 3
A9: ISTEXT | D9: Asset Value | E9: 125000
D10: Asset Value Hurdle | E10: 100000
A11: Blank Cell | D11: Are Both Hurdles met? AND
A12: Is the cell blank? | D12: Is At Least 1 Hurdle met? OR
A14: IF function examples:
A15: Put 1 of 2 numbers in the cell | D15: Put a blank or a formula in the cell
A16: Revenue | B16: 5000 | D16: Date | E16: Withdraw | F16: Deposit | G16: Balance
A17: Bonus Hurdle | B17: 6000 | D17: Bal For | G17: 500
A18: Bonus Amount | B18: 500 | D18: 2008-03-12 | E18: 20
A19: Bonus Expense | D19: 2008-03-13 | F19: 50
D20: 2008-03-14 | E20: 200
A21: Put 1 of 2 Text strings in the cell | G21: =IF(D21="","",G20+F21-E21) -> 
A22: Revenue | B22: 5000
A23: Expense | B23: 2000 | D23: Put a 1 of 2 ranges in a function
B24: =B22-B23 -> 3000 | D24: Department | E24: Jan Rev. | F24: Feb Rev. | G24: Mar Rev.
D25: Dept01 | E25: 16 | F25: 15 | G25: 29
A26: Put a 1 of 2 formulas in the cell | D26: Dept02 | E26: 39 | F26: 21 | G26: 44
A27: Revenue | B27: 5000 | D27: SUM of Rev. by Department | E27: Type Dept:
A28: Expense | B28: 6000 | E28: Dept01
D30: IF that uses AND function as Logical Test
D31: Credit Score | E31: 2
D32: Credit Score Hurdle | E32: 3
D33: Asset Value | E33: 125000
D34: Asset Value Hurdle | E34: 100000
D35: IF Both hurdles are met we will extend credit:
D37: IF that uses OR function as Logical Test
D38: Credit Score | E38: 2
D39: Credit Score Hurdle | E39: 3
D40: Asset Value | E40: 125000
D41: Asset Value Hurdle | E41: 100000
D42: IF Both hurdles are met we will extend credit:
D44: More than 1 IF: It is best to set up mutually exclusive Categories and go from the top to the bottom or bottom to top (However, if categories are mutually exclusive, then if you set the formula up right, you can go in any order. If the categories are not mutually exclusive, you can only go in the direction that the criteria states).
D45: Upper limit for Balance | E45: % Charge on Bal
D46: 0 | E46: 0.01
D47: 2500 | E47: 0.02
D48: 10000 | E48: 0.03
D49: 20000 | E49: 0.05
G50: Even better is the IF and VLOOKUP together
D51: 0 | G51: =D51 -> 0
D52: 1500 | G52: 1500
D53: 2000 | G53: 2000
D54: 2500 | G54: 2500
D55: 2500.5 | G55: 2500.5
D56: 2501 | G56: 2501
D57: 2502 | G57: 2502
D58: 2577 | G58: 2577
D59: 9999 | G59: 9999
D60: 10000 | G60: 10000
D61: 50000 | G61: 50000
D63: 0 | E63: =IF(AND(D63>=$D$46,D63<$D$47),D63*$E$46,IF(AND(D63>=$D$47,D63<$D$48),D63*$E$47,IF(AND(D63>=$D$48,D63<$D$49),D63*$E$48,IF(D63>=$D$49,D63*$E$49)))) -> 0
D64: 1500 | E64: 15
D65: 2000 | E65: 20
D66: 2500 | E66: 50
D67: 2500.5 | E67: 50.01
D68: 2501 | E68: 50.02
D69: 2502 | E69: 50.04
D70: 2577 | E70: 51.54
D71: 9999 | E71: 199.98
D72: 10000 | E72: 300
D73: 50000 | E73: 2500

Sheet IF (an)
A1: IF function: Logical Test that evaluates to TRUE or FALSE, What to put in cell if TRUE, What to put in cell if FALSE
A3: TRUE / FALSE examples:
A4: Revenue: | B4: 5000 | D4: Does DR = CR? | E4: DR | F4: CR
A5: Hurdle to get bonus: | B5: 4000 | D5: =E5=F5 -> FALSE | E5: 500 | F5: 499.99
A6: Is Revenue greater than Hurdle? | B6: =B4>=B5 -> TRUE
D7: Credit Score | E7: 2
A8: Text | B8: Excel is fun! | D8: Credit Score Hurdle | E8: 3
A9: ISTEXT | B9: =ISTEXT(B8) -> TRUE | D9: Asset Value | E9: 125000
D10: Asset Value Hurdle | E10: 100000
A11: Blank Cell | D11: Are Both Hurdles met? AND | E11: =AND(E7>=E8,E9>=E10) -> FALSE
A12: Is the cell blank? | B12: =B11="" -> TRUE | D12: Is At Least 1 Hurdle met? OR | E12: =OR(E7>=E8,E9>=E10) -> TRUE
A14: IF function examples:
A15: Put 1 of 2 numbers in the cell | D15: Put a blank or a formula in the cell
A16: Revenue | B16: 5000 | D16: Date | E16: Withdraw | F16: Deposit | G16: Balance
A17: Bonus Hurcle | B17: 6000 | D17: Bal For | G17: 500
A18: Bonus Amount | B18: 500 | D18: 2008-03-12 | E18: 20 | G18: =IF(D18="","",G17+F18-E18) -> 480
A19: Bonus Expense | B19: =IF(B16>=B17,B18,0) -> 0 | D19: 2008-03-13 | F19: 50 | G19: =IF(D19="","",G18+F19-E19) -> 530
D20: 2008-03-14 | E20: 200 | G20: =IF(D20="","",G19+F20-E20) -> 330
A21: Put 1 of 2 Text strings in the cell | G21: =IF(D21="","",G20+F21-E21) -> 
A22: Revenue | B22: 5000
A23: Expense | B23: 2000 | D23: Put a 1 of 2 ranges in a function
A24: =IF(B22>=B23,"Net Income","Net Loss") -> Net Income | B24: =B22-B23 -> 3000 | D24: Department | E24: Jan Rev. | F24: Feb Rev. | G24: Mar Rev.
D25: Dept01 | E25: 16 | F25: 15 | G25: 29
A26: Put a 1 of 2 formulas in the cell | D26: Dept02 | E26: 39 | F26: 21 | G26: 44
A27: Revenue | B27: 5000 | D27: SUM of Rev. by Department | E27: Type Dept:
A28: Expense | B28: 6000 | D28: =SUM(IF(E28="Dept01",E25:G25,E26:G26)) -> 60 | E28: Dept01
A29: =IF(B27>=B28,"Net Income","Net Loss") -> Net Loss | B29: =IF(B27>=B28,B27-B28,B28-B27) -> 1000
D30: IF that uses AND function as Logical Test
D31: Credit Score | E31: 2
D32: Credit Score Hurdle | E32: 3
D33: Asset Value | E33: 125000
D34: Asset Value Hurdle | E34: 100000
D35: IF Both hurdles are met we will extend credit: | E35: =IF(AND(E31>=E32,E33>=E34),"Extend Credit","No Credit") -> No Credit
D37: IF that uses OR function as Logical Test
D38: Credit Score | E38: 2
D39: Credit Score Hurdle | E39: 3
D40: Asset Value | E40: 125000
D41: Asset Value Hurdle | E41: 100000
D42: IF Both hurdles are met we will extend credit: | E42: =IF(OR(E38>=E39,E40>=E41),"Extend Credit","No Credit") -> Extend Credit
D44: More than 1 IF: It is best to set up mutually exclusive Categories and go from the top to the bottom or bottom to top (However, if categories are mutually exclusive, then if you set the formula up right, you can go in any order. If the categories are not mutually exclusive, you can only go in the direction that the criteria states).
D45: Upper limit for Balance | E45: % Charge on Bal
D46: 0 | E46: 0.01
D47: 2500 | E47: 0.02
D48: 10000 | E48: 0.03
D49: 20000 | E49: 0.05
G50: Even better is the IF and VLOOKUP together
D51: 0 | E51: =IF(D51>=$D$49,D51*$E$49,IF(D51>=$D$48,D51*$E$48,IF(D51>=$D$47,D51*$E$47,IF(D51>=$D$46,D51*$E$46)))) -> 0 | G51: =D51 -> 0 | H51: =VLOOKUP(G51,$D$46:$E$49,2)*G51 -> 0
D52: 1500 | E52: =IF(D52>=$D$49,D52*$E$49,IF(D52>=$D$48,D52*$E$48,IF(D52>=$D$47,D52*$E$47,IF(D52>=$D$46,D52*$E$46)))) -> 15 | G52: 1500 | H52: =VLOOKUP(G52,$D$46:$E$49,2)*G52 -> 15
D53: 2000 | E53: 20 | G53: 2000 | H53: 20
D54: 2500 | E54: 50 | G54: 2500 | H54: 50
D55: 2500.5 | E55: 50.01 | G55: 2500.5 | H55: 50.01
D56: 2501 | E56: 50.02 | G56: 2501 | H56: 50.02
D57: 2502 | E57: 50.04 | G57: 2502 | H57: 50.04
D58: 2577 | E58: 51.54 | G58: 2577 | H58: 51.54
D59: 9999 | E59: 199.98 | G59: 9999 | H59: 199.98
D60: 10000 | E60: 300 | G60: 10000 | H60: 300
D61: 50000 | E61: 2500 | G61: 50000 | H61: 2500
D63: 0 | E63: =IF(AND(D63>=$D$46,D63<$D$47),D63*$E$46,IF(AND(D63>=$D$47,D63<$D$48),D63*$E$47,IF(AND(D63>=$D$48,D63<$D$49),D63*$E$48,IF(D63>=$D$49,D63*$E$49)))) -> 0
D64: 1500 | E64: 15
D65: 2000 | E65: 20
D66: 2500 | E66: 50
D67: 2500.5 | E67: 50.01
D68: 2501 | E68: 50.02
D69: 2502 | E69: 50.04
D70: 2577 | E70: 51.54
D71: 9999 | E71: 199.98
D72: 10000 | E72: 300
D73: 50000 | E73: 2500

Sheet IF(HW)
A1: IF function
A2: Delivers 1 of 2 things to a cell or formula
A3: You can deliver: Words, Numbers, or Formulas to a cell or formula
A4: argument 1 | B4: This is a TRUE/FALSE test. The test either evaluates to TRUE, or FALSE
A5: argument 2 | B5: What to put in the cell or formula if the test evaluates to TRUE
A6: argument 3 | B6: What to put in the cell or formula if the test evaluates to FALSE
E7: Deliver 1 of 2 Numbers to cell
E8: Sales | F8: 300
E9: Sales Hurdle | F9: 250
E10: Bonus if Hurdle met | F10: 10
E11: Bonus if Hurdle not met | F11: 0
E12: Bonus Amount | F12: =IF(F8>=F9,F10,F11) -> 10 | G12: =IF(F8>=F9,F10,F11)
E14: Deliver 1 of 2 possible Text items to the cell
E15: Sales | F15: 500
E16: Expenses | F16: 200
E17: =IF(F15>=F16,"Net Income","Net Loss") -> Net Income | F17: =F15-F16 -> 300 | G17: =IF(F15>=F16,"Net Income","Net Loss")
E19: Deliver 1 of 2 possible Formulas to cell
E20: Sales | F20: 500
E21: Expenses | F21: 200
E22: =IF(F20>=F21,"Net Income","Net Loss") -> Net Income | F22: =IF(F20>=F21,F20-F21,F21-F20) -> 300 | G22: =IF(F20>=F21,F20-F21,F21-F20)
E24: More than one IF ==> Delivering 1 of 3 Text items to the cell
E25: Sales | F25: =F20 -> 500
E26: Expenses | F26: 500
E27: =IF(F25>F26,"Net Income",IF(F25=F26,"Break Even","Net Loss")) -> Break Even | F27: =IF(F25>=F26,F25-F26,F26-F25) -> 0 | G27: =IF(F25>F26,"Net Income",IF(F25=F26,"Break Even","Net Loss"))
E29: More than one IF (delivering 1 of 7 possible formulas to the cell) ==> Where you actually should use VLOOKUP | H29: Days Invoice Overdue | I29: Description | J29: Interest Rate Late Fee | K29: The rule is: set up Mutually Exclusive categories (for both IF and VLOOKUP) and formula creation time and error will be minimized.
E30: Invoice Total Due | F30: 7123.76 | H30: =L30 -> 0 | I30: =IF(H30=$L$37,"Over "&L30,"Over "&L30&" but less than "&M30) -> Over 0 but less than 10 | J30: 0 | L30: 0 | M30: =L31 -> 10
E31: Invoice Due Date | F31: =F32-INT(RAND()*200) -> 2008-02-24 | H31: =L31 -> 10 | I31: =IF(H31=$L$37,"Over "&L31,"Over "&L31&" but less than "&M31) -> Over 10 but less than 20 | J31: 0.01 | L31: 10 | M31: 20
E32: Today | F32: =TODAY() -> 2008-04-22 | H32: 20 | I32: =IF(H32=$L$37,"Over "&L32,"Over "&L32&" but less than "&M32) -> Over 20 but less than 30 | J32: 0.02 | L32: 20 | M32: 30
E33: Days Invoice Over Due | F33: =F32-F31 -> 58 | H33: 30 | I33: Over 30 but less than 40 | J33: 0.03 | L33: 30 | M33: 40
E34: Late Fee | F34: =ROUND(IF(F33>=H37,F30*J37,IF(F33>=H36,F30*J36,IF(F33>=H35,F30*J35,IF(F33>=H34,F30*J34,IF(F33>=H33,F30*J33,IF(F33>=H32,F30*J32,IF(F33>=H31,F30*J31,0))))))),2) -> 356.19 | H34: 40 | I34: Over 40 but less than 50 | J34: 0.04 | L34: 40 | M34: 50
H35: 50 | I35: Over 50 but less than 90 | J35: 0.05 | L35: 50 | M35: 90
H36: 90 | I36: Over 90 but less than 120 | J36: 0.06 | L36: 90 | M36: 120
H37: 120 | I37: Over 120 | J37: 0.07 | L37: 120
A38: VLOOKUP function
A39: Delivers one thing from a vertical list of things to a cell or formula
A40: You can deliver: Words or Numbers to a cell or formula
A41: argument 1 | B41: What value to you want to "take" from a cell and go over to the Vertical List and try and find
A42: argument 2 | B42: Were is the Vertical List with the first column that is filled with "lookup" values and the remaining columns that have values that you want to return to the cell or formula from the same row as the value you found in the first column. (Remember: the first column has to be sorted in ascending order).
A43: argument 3 | B43: What column should the VLOOKUP function look in in the Vertical List to find the value to deliver back to the cell or formula? Should it be the 2nd column (2), or 3rd (3), or…? (Remember, the first column in the Vertical List is considered column 1 (1)).
A44: argument 4 | B44: In the 1st column, are you looking up an exact match (0), or are you looking for the closet match that is not bigger than the value you are trying to find? (A great analogy is the idea that the VLOOKUP function looks down the first column until it finds a value greater than it and then selects the row above that one from which to return a value. If the first value in the first column is greater than the value you are trying to find, a #N/A error is returned.
E45: More than one IF (delivering 1 of 7 possible formulas to the cell) ==> USE VLOOKUP | H45: Days Invoice Overdue | I45: Description | J45: Interest Rate Late Fee
E46: Invoice Total Due | F46: 7123.76 | H46: =L46 -> 0 | I46: =IF(H46=$L$37,"Over "&L46,"Over "&L46&" but less than "&M46) -> Over 0 but less than 10 | J46: 0 | L46: 0 | M46: =L47 -> 10
E47: Invoice Due Date | F47: =F31 -> 2008-02-24 | H47: =L47 -> 10 | I47: =IF(H47=$L$37,"Over "&L47,"Over "&L47&" but less than "&M47) -> Over 10 but less than 20 | J47: 0.01 | L47: 10 | M47: 20
E48: Today | F48: =TODAY() -> 2008-04-22 | H48: 20 | I48: =IF(H48=$L$37,"Over "&L48,"Over "&L48&" but less than "&M48) -> Over 20 but less than 30 | J48: 0.02 | L48: 20 | M48: 30
E49: Days Invoice Over Due | F49: =F48-F47 -> 58 | H49: 30 | I49: Over 30 but less than 40 | J49: 0.03 | L49: 30 | M49: 40
E50: Late Fee | F50: =ROUND(VLOOKUP(F49,H30:J37,3)*F46,2) -> 356.19 | H50: 40 | I50: Over 40 but less than 50 | J50: 0.04 | L50: 40 | M50: 50
H51: 50 | I51: Over 50 but less than 90 | J51: 0.05 | L51: 50 | M51: 90
H52: 90 | I52: Over 90 but less than 120 | J52: 0.06 | L52: 90 | M52: 120
H53: 120 | I53: Over 120 | J53: 0.07 | L53: 120
E63: More than one IF (delivering 1 of 12 possible formulas to the cell) ==> Where you actually should use VLOOKUP | H63: Days Invoice Overdue | I63: Description | J63: Interest Rate Late Fee
E64: Invoice Total Due | F64: 7123.76 | H64: =L64 -> 0 | I64: =IF(H64=$L$75,"Over "&L64,"Over "&L64&" but less than "&M64) -> Over 0 but less than 10 | J64: 0 | L64: 0 | M64: =L65 -> 10
E65: Invoice Due Date | F65: =F32-INT(RAND()*400) -> 2008-02-13 | H65: =L65 -> 10 | I65: Over 10 but less than 20 | J65: 0.01 | L65: 10 | M65: =L66 -> 20
E66: Today | F66: =TODAY() -> 2008-04-22 | H66: 20 | I66: Over 20 but less than 30 | J66: 0.02 | L66: 20 | M66: =L67 -> 30
E67: Days Invoice Over Due | F67: =F66-F65 -> 69 | H67: 30 | I67: Over 30 but less than 40 | J67: 0.03 | L67: 30 | M67: 40
E68: Late Fee | F68: =IF(F67<H65,J64*F64,IF(F67<H66,F64*J65,IF(F67<H67,F64*J66,IF(F67<H68,F64*J67,IF(F67<H69,F64*J68,IF(F67<H70,F64*J69,IF(F67<H71,F64*J70,0)))))))+IF(AND(F67>=H71,F67<H72),F64*J71,IF(AND(F67>=H72,F67<H73),F64*J72,IF(AND(F67>=H73,F67<H74),F64*J73,IF(AND(F67>=H74,F67<H75),F64*J74,IF(F67>H75,F64*J75))))) -> 356.188 | H68: 40 | I68: Over 40 but less than 50 | J68: 0.04 | L68: 40 | M68: 50
H69: 50 | I69: Over 50 but less than 90 | J69: 0.05 | L69: 50 | M69: 90
H70: 90 | I70: Over 90 but less than 120 | J70: 0.06 | L70: 90 | M70: 120
H71: 120 | I71: Over 120 but less than 160 | J71: 0.07 | L71: 120 | M71: 160
H72: 160 | I72: Over 160 but less than 190 | J72: 0.08 | L72: 160 | M72: 190
H73: 190 | I73: Over 190 but less than 250 | J73: 0.09 | L73: 190 | M73: 250
H74: 250 | I74: Over 250 but less than 365 | J74: 0.1 | L74: 250 | M74: 365
H75: 365 | I75: Over 365 | J75: 0.11 | L75: 365
E77: More than one IF (delivering 1 of 7 possible formulas to the cell) ==> USE VLOOKUP | H77: Days Invoice Overdue | I77: Description | J77: Interest Rate Late Fee
E78: Invoice Total Due | F78: 7123.76 | H78: =L78 -> 0 | I78: =IF(H78=$L$75,"Over "&L78,"Over "&L78&" but less than "&M78) -> Over 0 but less than 10 | J78: 0 | L78: 0 | M78: =L79 -> 10
E79: Invoice Due Date | F79: =F65 -> 2008-02-13 | H79: =L79 -> 10 | I79: Over 10 but less than 20 | J79: 0.01 | L79: 10 | M79: =L80 -> 20
E80: Today | F80: =TODAY() -> 2008-04-22 | H80: 20 | I80: Over 20 but less than 30 | J80: 0.02 | L80: 20 | M80: =L81 -> 30
E81: Days Invoice Over Due | F81: =F80-F79 -> 69 | H81: 30 | I81: Over 30 but less than 40 | J81: 0.03 | L81: 30 | M81: 40
E82: Late Fee | F82: =ROUND(VLOOKUP(F81,H78:J89,3)*F78,2) -> 356.19 | H82: 40 | I82: Over 40 but less than 50 | J82: 0.04 | L82: 40 | M82: 50
H83: 50 | I83: Over 50 but less than 90 | J83: 0.05 | L83: 50 | M83: 90
H84: 90 | I84: Over 90 but less than 120 | J84: 0.06 | L84: 90 | M84: 120
H85: 120 | I85: Over 120 but less than 160 | J85: 0.07 | L85: 120 | M85: 160
H86: 160 | I86: Over 160 but less than 190 | J86: 0.08 | L86: 160 | M86: 190
H87: 190 | I87: Over 190 but less than 250 | J87: 0.09 | L87: 190 | M87: 250
H88: 250 | I88: Over 250 but less than 365 | J88: 0.1 | L88: 250 | M88: 365
H89: 365 | I89: Over 365 | J89: 0.11 | L89: 365
E93: =H93 -> Product ID | F93: =J93 -> Price | H93: Product ID | I93: Description | J93: Price
E94: Product 1 | F94: =VLOOKUP(E94,H94:J99,3,0) -> 8 | H94: Product 1 | I94: =H94&ROW() -> Product 194 | J94: 8
H95: Product 2 | I95: Product 295 | J95: 24
H96: Product 3 | I96: Product 396 | J96: 24
H97: Product 4 | I97: Product 497 | J97: 8
H98: Product 5 | I98: Product 598 | J98: 10
H99: Product 6 | I99: Product 699 | J99: 24

Sheet Payroll Register
G1: Taxable Earnings | J1: Deductions
A2: Name | B2: Hours | C2: Wage | D2: Gross | E2: Beg Cumulative | F2: End Cumulative | G2: UnEm | H2: =H22 -> SS | I2: =I22 -> Medicare | J2: =H2 -> SS | K2: =I2 -> Medicare | L2: =J22 -> Pension | M2: Total Ded. | N2: Net Pay | O2: Expense
A3: Employee 1 | B3: 33 | C3: 12.55 | D3: =ROUND(B3*C3,2) -> 414.15 | E3: 25001.37 | F3: =SUM(D3:E3) -> 25415.52 | J3: =ROUND(H3*H$23,2) -> 0 | K3: 0 | L3: =ROUND(D3*J$23,2) -> 8.28 | M3: =SUM(J3:L3) -> 8.28 | N3: =D3-M3 -> 405.87 | O3: =D3 -> 414.15
A4: Employee 2 | B4: 30 | C4: 25 | D4: 750 | E4: 36589.74 | F4: 37339.74 | J4: 0 | K4: 0 | L4: 15 | M4: 15 | N4: 735 | O4: 750
A5: Employee 3 | B5: 38 | C5: 23 | D5: 874 | E5: 115450.01 | F5: 116324.01 | J5: 0 | K5: 0 | L5: 17.48 | M5: 17.48 | N5: 856.52 | O5: 874
A6: Employee 4 | B6: 40 | C6: 22 | D6: 880 | E6: 5000.06 | F6: 5880.06 | J6: 0 | K6: 0 | L6: 17.6 | M6: 17.6 | N6: 862.4 | O6: 880
A7: Employee 5 | B7: 32 | C7: 24 | D7: 768 | E7: 6999 | F7: 7767 | J7: 0 | K7: 0 | L7: 15.36 | M7: 15.36 | N7: 752.64 | O7: 768
A8: Employee 6 | B8: 40 | C8: 17 | D8: 680 | E8: 7000.34 | F8: 7680.34 | J8: 0 | K8: 0 | L8: 13.6 | M8: 13.6 | N8: 666.4 | O8: 680
A9: Employee 7 | B9: 37 | C9: 13 | D9: 481 | E9: 7001.93 | J9: 0 | K9: 0 | L9: 9.62 | M9: 9.62 | N9: 471.38 | O9: 481
A10: Employee 8 | B10: 39 | C10: 24.75 | D10: 965.25 | E10: 94199.64 | J10: 0 | K10: 0 | L10: 19.31 | M10: 19.31 | N10: 945.94 | O10: 965.25
A11: Employee 9 | B11: 32 | C11: 17 | D11: 544 | E11: 94200.5 | J11: 0 | K11: 0 | L11: 10.88 | M11: 10.88 | N11: 533.12 | O11: 544
A12: Employee 10 | B12: 38 | C12: 24.19 | D12: 919.22 | E12: 94201.13 | F12: =SUM(D12:E12) -> 95120.35 | J12: 0 | K12: 0 | L12: 18.38 | M12: 18.38 | N12: 900.84 | O12: 919.22
A13: Employee 11 | B13: 33 | C13: 19 | D13: 627 | E13: 95000.49 | F13: 95627.49 | J13: 0 | K13: 0 | L13: 12.54 | M13: 12.54 | N13: 614.46 | O13: 627
A14: Employee 12 | B14: 39 | C14: 20.35 | D14: 793.65 | E14: 125000.35 | F14: 125794 | J14: 0 | K14: 0 | L14: 15.87 | M14: 15.87 | N14: 777.78 | O14: 793.65
A15: Employee 13 | B15: 39 | C15: 18 | D15: 702 | E15: 500.67 | F15: 1202.67 | J15: 0 | K15: 0 | L15: 14.04 | M15: 14.04 | N15: 687.96 | O15: 702
A16: Employee 14 | B16: 32 | C16: 11 | D16: 352 | E16: 6850.76 | F16: 7202.76 | J16: 0 | K16: 0 | L16: 7.04 | M16: 7.04 | N16: 344.96 | O16: 352
A17: Employee 15 | B17: 30 | C17: 18 | D17: 540 | E17: 20000 | F17: 20540 | J17: 0 | K17: 0 | L17: 10.8 | M17: 10.8 | N17: 529.2 | O17: 540
A18: Employee 16 | B18: 37 | C18: 12.45 | D18: 460.65 | E18: 93990.66 | F18: 94451.31 | J18: 0 | K18: 0 | L18: 9.21 | M18: 9.21 | N18: 451.44 | O18: 460.65
B19: =SUM(B3:B18) -> 569 | C19: 301.29 | D19: 10750.92 | E19: 826986.65 | F19: 640345.25 | G19: 0 | H19: 0 | I19: 0 | J19: 0 | K19: 0 | L19: 215.01 | M19: 215.01 | N19: 10535.91 | O19: 10750.92
F21: Assumptions
F22: UnEm State | G22: UnEm Fed | H22: SS | I22: Medicare | J22: Pension
F23: 0.054 | G23: 0.0008 | H23: 0.062 | I23: 0.0145 | J23: 0.02
G24: =G22&" Ceiling" -> UnEm Fed Ceiling | H24: =H22&" Ceiling" -> SS Ceiling
G25: 7000 | H25: 94200

Sheet Payroll Register (an)
G1: Taxable Earnings | J1: Deductions
A2: Name | B2: Hours | C2: Wage | D2: Gross | E2: Beg Cumulative | F2: End Cumulative | G2: UnEm | H2: =H22 -> SS | I2: =I22 -> Medicare | J2: =H2 -> SS | K2: =I2 -> Medicare | L2: =J22 -> Pension | M2: Total Ded. | N2: Net Pay | O2: Expense
A3: Employee 1 | B3: 33 | C3: 12.55 | D3: =ROUND(B3*C3,2) -> 414.15 | E3: 25001.37 | F3: =SUM(D3:E3) -> 25415.52 | G3: =IF($E3>=G$25,0,IF($F3<=G$25,$D3,G$25-$E3)) -> 0 | H3: 414.15 | I3: =D3 -> 414.15 | J3: =ROUND(H3*H$23,2) -> 25.68 | K3: 6.01 | L3: =ROUND(D3*J$23,2) -> 8.28 | M3: =SUM(J3:L3) -> 39.97 | N3: =D3-M3 -> 374.18 | O3: =D3 -> 414.15
A4: Employee 2 | B4: 30 | C4: 25 | D4: =ROUND(B4*C4,2) -> 750 | E4: 36589.74 | F4: =SUM(D4:E4) -> 37339.74 | G4: 0 | H4: 750 | I4: 750 | J4: 46.5 | K4: 10.88 | L4: 15 | M4: 72.38 | N4: 677.62 | O4: 750
A5: Employee 3 | B5: 38 | C5: 23 | D5: 874 | E5: 115450.01 | F5: 116324.01 | G5: 0 | H5: 0 | I5: 874 | J5: 0 | K5: 12.67 | L5: 17.48 | M5: 30.15 | N5: 843.85 | O5: 874
A6: Employee 4 | B6: 40 | C6: 22 | D6: 880 | E6: 5000.06 | F6: 5880.06 | G6: 880 | H6: 880 | I6: 880 | J6: 54.56 | K6: 12.76 | L6: 17.6 | M6: 84.92 | N6: 795.08 | O6: 880
A7: Employee 5 | B7: 32 | C7: 24 | D7: 768 | E7: 6999 | F7: 7767 | G7: 1 | H7: 768 | I7: 768 | J7: 47.62 | K7: 11.14 | L7: 15.36 | M7: 74.12 | N7: 693.88 | O7: 768
A8: Employee 6 | B8: 40 | C8: 17 | D8: 680 | E8: 7000.34 | F8: 7680.34 | G8: 0 | H8: 680 | I8: 680 | J8: 42.16 | K8: 9.86 | L8: 13.6 | M8: 65.62 | N8: 614.38 | O8: 680
A9: Employee 7 | B9: 37 | C9: 13 | D9: 481 | E9: 7001.93 | F9: 7482.93 | G9: 0 | H9: 481 | I9: 481 | J9: 29.82 | K9: 6.97 | L9: 9.62 | M9: 46.41 | N9: 434.59 | O9: 481
A10: Employee 8 | B10: 39 | C10: 24.75 | D10: 965.25 | E10: 94199.64 | F10: 95164.89 | G10: 0 | H10: 0.36 | I10: 965.25 | J10: 0.02 | K10: 14 | L10: 19.31 | M10: 33.33 | N10: 931.92 | O10: 965.25
A11: Employee 9 | B11: 32 | C11: 17 | D11: 544 | E11: 94200.5 | F11: 94744.5 | G11: 0 | H11: 0 | I11: 544 | J11: 0 | K11: 7.89 | L11: 10.88 | M11: 18.77 | N11: 525.23 | O11: 544
A12: Employee 10 | B12: 38 | C12: 24.19 | D12: 919.22 | E12: 94201.13 | F12: 95120.35 | G12: 0 | H12: 0 | I12: 919.22 | J12: 0 | K12: 13.33 | L12: 18.38 | M12: 31.71 | N12: 887.51 | O12: 919.22
A13: Employee 11 | B13: 33 | C13: 19 | D13: 627 | E13: 95000.49 | F13: =SUM(D13:E13) -> 95627.49 | G13: 0 | H13: 0 | I13: 627 | J13: 0 | K13: 9.09 | L13: 12.54 | M13: 21.63 | N13: 605.37 | O13: 627
A14: Employee 12 | B14: 39 | C14: 20.35 | D14: 793.65 | E14: 125000.35 | F14: 125794 | G14: 0 | H14: 0 | I14: 793.65 | J14: 0 | K14: 11.51 | L14: 15.87 | M14: 27.38 | N14: 766.27 | O14: 793.65
A15: Employee 13 | B15: 39 | C15: 18 | D15: 702 | E15: 500.67 | F15: 1202.67 | G15: 702 | H15: 702 | I15: 702 | J15: 43.52 | K15: 10.18 | L15: 14.04 | M15: 67.74 | N15: 634.26 | O15: 702
A16: Employee 14 | B16: 32 | C16: 11 | D16: 352 | E16: 6850.76 | F16: 7202.76 | G16: 149.24 | H16: 352 | I16: 352 | J16: 21.82 | K16: 5.1 | L16: 7.04 | M16: 33.96 | N16: 318.04 | O16: 352
A17: Employee 15 | B17: 30 | C17: 18 | D17: 540 | E17: 20000 | F17: 20540 | G17: 0 | H17: 540 | I17: 540 | J17: 33.48 | K17: 7.83 | L17: 10.8 | M17: 52.11 | N17: 487.89 | O17: 540
A18: Employee 16 | B18: 37 | C18: 12.45 | D18: 460.65 | E18: 93990.66 | F18: 94451.31 | G18: 0 | H18: =IF($E18>=H$25,0,IF($F18<=H$25,$D18,H$25-$E18)) -> 209.34 | I18: 460.65 | J18: 12.98 | K18: 6.68 | L18: 9.21 | M18: 28.87 | N18: 431.78 | O18: 460.65
B19: =SUM(B3:B18) -> 569 | C19: 301.29 | D19: 10750.92 | E19: 826986.65 | F19: 837737.57 | G19: 1732.24 | H19: 5776.85 | I19: 10750.92 | J19: 358.16 | K19: 155.9 | L19: 215.01 | M19: 729.07 | N19: 10021.85 | O19: 10750.92
F21: Assumptions
F22: UnEm State | G22: UnEm Fed | H22: SS | I22: Medicare | J22: Pension
F23: 0.054 | G23: 0.0008 | H23: 0.062 | I23: 0.0145 | J23: 0.02
G24: =G22&" Ceiling" -> UnEm Fed Ceiling | H24: =H22&" Ceiling" -> SS Ceiling
G25: 7000 | H25: 94200

Sheet NOT NONE ONLY ALT+O+D
A1: Is Account Suspended? | B1: Customer | C1: Credit Rating 01 | D1: Credit Rating 02 | E1: Asset Value | F1: =E20 -> Past Year's Sales | G1: =F20 -> Current Over Due Balance | H1: =H19 -> Rule 1 | I1: =I19 -> Rule 2 | J1: NONE: 2 rules not met) | K1: ONLY: Two rules are false, but Asset Hurdle Met
A2: Not Suspended | B2: Customer 01 | C2: 4 | D2: 9 | E2: 159441 | F2: 332082 | G2: 0
A3: Not Suspended | B3: Customer 02 | C3: 4 | D3: 6 | E3: 796571 | F3: 455968 | G3: 1
A4: Not Suspended | B4: Customer 03 | C4: 2 | D4: 3 | E4: 1243611 | F4: 373892 | G4: 1
A5: Suspended | B5: Customer 04 | C5: 3 | D5: 3 | E5: 4939327 | F5: 285446 | G5: 1
A6: Not Suspended | B6: Customer 05 | C6: 2 | D6: 7 | E6: 2647055 | F6: 191068 | G6: 0
A7: Not Suspended | B7: Customer 06 | C7: 2 | D7: 2 | E7: 1409633 | F7: 168029 | G7: 0
A8: Not Suspended | B8: Customer 07 | C8: 3 | D8: 8 | E8: 4350814 | F8: 353054 | G8: 1
A9: Not Suspended | B9: Customer 08 | C9: 4 | D9: 9 | E9: 2395694 | F9: 198841 | G9: 0
A10: Not Suspended | B10: Customer 09 | C10: 0 | D10: 3 | E10: 1629030 | F10: 199163 | G10: 1
A11: Not Suspended | B11: Customer 10 | C11: 3 | D11: 8 | E11: 207371 | F11: 189052 | G11: 1
A12: Suspended | B12: Customer 11 | C12: 0 | D12: 5 | E12: 4857701 | F12: 347454 | G12: 1
A13: Not Suspended | B13: Customer 12 | C13: 3 | D13: 4 | E13: 1968563 | F13: 90424 | G13: 1
A14: Not Suspended | B14: Customer 13 | C14: 3 | D14: 8 | E14: 3183148 | F14: 169508 | G14: 1
A15: Not Suspended | B15: Customer 14 | C15: 2 | D15: 7 | E15: 3898837 | F15: 238658 | G15: 0
A16: Not Suspended | B16: Customer 15 | C16: 0 | D16: 9 | E16: 4643757 | F16: 439679 | G16: 1
A18: Assumptions
B19: Credit Criteria 1 | C19: Credit Criteria 2 | D19: Credit Criteria 3 | E19: Credit Criteria 4 | F19: Credit Criteria 5 | H19: Rule 1 | I19: Rule 2
B20: Hurdle Credit Rating 01 | C20: Hurdle Credit Rating 02 | D20: Hurdle Asset Value | E20: Past Year's Sales | F20: Current Over Due Balance | G20: Is Account Suspended? | H20: ="Not Suspended, No Overdue Balance and Past sales > "&DOLLAR(E21)&"" -> Not Suspended, No Overdue Balance and Past sales > $50,000.00 | I20: Both Credit Hurdles must be met and at least 1 of the remaining criteria must be met
B21: 2 | C21: 4.5 | D21: 200000 | E21: 50000 | F21: 0 | G21: Suspended
A22: Low | B22: 0 | C22: 0 | G22: Not Suspended
A23: High | B23: 4 | C23: 10

Sheet NOT NONE ONLY ALT+O+D (an)
A1: Is Account Suspended? | B1: Customer | C1: Credit Rating 01 | D1: Credit Rating 02 | E1: Asset Value | F1: =E20 -> Past Year's Sales | G1: =F20 -> Current Over Due Balance | H1: =H19 -> Rule 1 | I1: =I19 -> Rule 2 | J1: NONE: 2 rules not met) | K1: ONLY: Two rules are false, but Asset Hurdle Met
A2: Not Suspended | B2: Customer 01 | C2: 4 | D2: 9 | E2: 159441 | F2: 332082 | G2: 0 | H2: =AND(A2<>G$21,G2=F$21,F2>=E$21) -> TRUE | I2: =AND(AND(C2>=B$21,D2>=C$21),OR(E2>=D$21,F2>=E$21,G2=F$21)) -> TRUE | J2: =NOT(OR(H2:I2)) -> FALSE | K2: =AND(E2>=D$21,NOT(OR(H2:I2))) -> FALSE
A3: Not Suspended | B3: Customer 02 | C3: 4 | D3: 6 | E3: 796571 | F3: 455968 | G3: 1 | H3: =AND(A3<>G$21,G3=F$21,F3>=E$21) -> FALSE | I3: TRUE | J3: FALSE | K3: FALSE
A4: Not Suspended | B4: Customer 03 | C4: 2 | D4: 3 | E4: 1243611 | F4: 373892 | G4: 1 | H4: FALSE | I4: FALSE | J4: TRUE | K4: TRUE
A5: Suspended | B5: Customer 04 | C5: 3 | D5: 3 | E5: 4939327 | F5: 285446 | G5: 1 | H5: FALSE | I5: FALSE | J5: TRUE | K5: TRUE
A6: Not Suspended | B6: Customer 05 | C6: 2 | D6: 7 | E6: 2647055 | F6: 191068 | G6: 0 | H6: TRUE | I6: TRUE | J6: FALSE | K6: FALSE
A7: Not Suspended | B7: Customer 06 | C7: 2 | D7: 2 | E7: 1409633 | F7: 168029 | G7: 0 | H7: TRUE | I7: FALSE | J7: FALSE | K7: FALSE
A8: Not Suspended | B8: Customer 07 | C8: 3 | D8: 8 | E8: 4350814 | F8: 353054 | G8: 1 | H8: FALSE | I8: TRUE | J8: FALSE | K8: FALSE
A9: Not Suspended | B9: Customer 08 | C9: 4 | D9: 9 | E9: 2395694 | F9: 198841 | G9: 0 | H9: TRUE | I9: TRUE | J9: FALSE | K9: FALSE
A10: Not Suspended | B10: Customer 09 | C10: 0 | D10: 3 | E10: 1629030 | F10: 199163 | G10: 1 | H10: FALSE | I10: FALSE | J10: TRUE | K10: TRUE
A11: Not Suspended | B11: Customer 10 | C11: 3 | D11: 8 | E11: 207371 | F11: 189052 | G11: 1 | H11: FALSE | I11: TRUE | J11: FALSE | K11: FALSE
A12: Suspended | B12: Customer 11 | C12: 0 | D12: 5 | E12: 4857701 | F12: 347454 | G12: 1 | H12: FALSE | I12: FALSE | J12: TRUE | K12: TRUE
A13: Not Suspended | B13: Customer 12 | C13: 3 | D13: 4 | E13: 1968563 | F13: 90424 | G13: 1 | H13: FALSE | I13: FALSE | J13: TRUE | K13: TRUE
A14: Not Suspended | B14: Customer 13 | C14: 3 | D14: 8 | E14: 3183148 | F14: 169508 | G14: 1 | H14: FALSE | I14: TRUE | J14: FALSE | K14: FALSE
A15: Not Suspended | B15: Customer 14 | C15: 2 | D15: 7 | E15: 3898837 | F15: 238658 | G15: 0 | H15: TRUE | I15: TRUE | J15: FALSE | K15: FALSE
A16: Not Suspended | B16: Customer 15 | C16: 0 | D16: 9 | E16: 4643757 | F16: 439679 | G16: 1 | H16: FALSE | I16: FALSE | J16: TRUE | K16: TRUE
A18: Assumptions
B19: Credit Criteria 1 | C19: Credit Criteria 2 | D19: Credit Criteria 3 | E19: Credit Criteria 4 | F19: Credit Criteria 5 | H19: Rule 1 | I19: Rule 2
B20: Hurdle Credit Rating 01 | C20: Hurdle Credit Rating 02 | D20: Hurdle Asset Value | E20: Past Year's Sales | F20: Current Over Due Balance | G20: Is Account Suspended? | H20: ="Not Suspended, No Overdue Balance and Past sales > "&DOLLAR(E21)&"" -> Not Suspended, No Overdue Balance and Past sales > $50,000.00 | I20: Both Criteria Hurdles must be met and at least 1 of the remaining criteria must be met
B21: 2 | C21: 4.5 | D21: 200000 | E21: 50000 | F21: 0 | G21: Suspended
A22: Low | B22: 0 | C22: 0 | G22: Not Suspended
A23: High | B23: 4 | C23: 10

Sheet HW ==>

Sheet P214-241
A1: Credit approval indicator rules to each customer’s data. The three rules together suggest a customer's creditworthiness. A rejection on one rule does not automatically translate to automatic denial. For problem accounts, a False or Rejection is an indicator that we should further investigate the customer's creditworthiness.
C2: % of this year's total sales
A3: Rule 1 (FALSE is Reject) | B3: ="Past due balance is less than "&C3*100&C2 -> Past due balance is less than 10% of this year's total sales | C3: 0.1
B4: Not calculated for new customers | C4: Composite credit appraisal value | D4: PAYDEX score over
A5: Rule 2 (FALSE is Reject) | B5: =C4&" of "&C5&" OR a "&D4&" "&D5 -> Composite credit appraisal value of 1 OR a PAYDEX score over 90 | C5: 1 | D5: 90
A7: Rule 3 (FALSE is Reject) | B7: =C7&" "&DOLLAR(C8)&" AND a "&D7&" "&D8&" AND "&E7&" "&E8&" AND a "&F7&" "&F8 -> Net worth of at least $500,000.00 AND a composite credit appraisal value less than or equal to 2 AND PAYDEX score over 70 AND a stress risk class of 1 | C7: Net worth of at least | D7: composite credit appraisal value less than or equal to | E7: PAYDEX score over | F7: stress risk class of
C8: 500000 | D8: 2 | E8: 70 | F8: 1
A10: Formatting Rules
A11: Rule 1 | B11: ="Net worth is less than "&DOLLAR(C11) -> Net worth is less than $1,000,000.00 | C11: 1000000
A12: Rule 2 | B12: ="Net worth is greater than "&DOLLAR(C12) -> Net worth is greater than $10,000,000.00 | C12: 10000000
A14: ="Rules for "&A21&"; "&A22&"; "&A28 -> Rules for Reject; Further Evaluate; Accept
A16: How many outcomes are there with this rule? | B16: =B18^B17 -> 8
A17: How many experiments? | B17: 3
A18: How many out comes for each experiment? | B18: 2
B20: Rule #1 | C20: Rule #2 | D20: Rule #3
A21: Reject | B21: FALSE | C21: FALSE | D21: FALSE
A22: Further Evaluate | B22: TRUE | C22: FALSE | D22: FALSE
C23: OR
A24: Inside an or | B24: FALSE | C24: TRUE | D24: FALSE
B25: FALSE | C25: FALSE | D25: TRUE
B26: FALSE | C26: TRUE | D26: TRUE
A28: Accept | B28: TRUE | C28: TRUE | D28: TRUE
B29: TRUE | C29: FALSE | D29: TRUE
B30: TRUE | C30: TRUE | D30: FALSE

Sheet P214-241(2nd)
A1: Accounts Receivable Department - Customer Credit Analysis
A2: Customer Name | B2: Current Credit Limit | C2: Previous Year's Sales | D2: Current Year's Sales | E2: Past Due Balance | F2: Net Worth in (000) | G2: D&B Credit Rating Class | H2: D&B Composite Credit Appraisal (1 Best) | I2: D&B PAYDEX (100 Best) | J2: D&B Stress Risk Class (1 Best) | K2: ='P214-241'!A3&": "&'P214-241'!B3 -> Rule 1 (FALSE is Reject): Past due balance is less than 10% of this year's total sales | L2: ='P214-241'!A5&": "&'P214-241'!B5 -> Rule 2 (FALSE is Reject): Composite credit appraisal value of 1 OR a PAYDEX score over 90 | M2: ='P214-241'!A7&": "&'P214-241'!B7 -> Rule 3 (FALSE is Reject): Net worth of at least $500,000.00 AND a composite credit appraisal value less than or equal to 2 AND PAYDEX score over 70 AND a stress risk class of 1 | N2: Reject? Further Evaluate? Accept?
A3: Athletic Gear Corp. | B3: 9000 | C3: 15382 | D3: 11952 | E3: 0 | F3: 450 | G3: BA | H3: 4 | I3: 15 | J3: 3 | K3: =IF(C3="","",E3<D3*'P214-241'!C$3) -> TRUE | L3: =OR(H3='P214-241'!C$5,I3>'P214-241'!D$5) -> FALSE | M3: =AND(F3*1000>='P214-241'!C$8,H3<='P214-241'!D$8,I3>'P214-241'!E$8,J3='P214-241'!F$8) -> FALSE | N3: =IF(NOT(OR(K3:M3)),"Reject",IF(OR(AND(OR(L3:M3),K3),AND(OR(L3:M3),NOT(K3))),"FurtherEvaluate","Accept")) -> Accept
A4: Baltimore O's | B4: 39000 | C4: 10033 | D4: 7789 | E4: 0 | F4: 1950 | G4: 3A | H4: 1 | I4: 51 | J4: 1 | K4: =IF(C4="","",E4<D4*'P214-241'!C$3) -> TRUE | L4: =OR(H4='P214-241'!C$5,I4>'P214-241'!D$5) -> TRUE | M4: =AND(F4*1000>='P214-241'!C$8,H4<='P214-241'!D$8,I4>'P214-241'!E$8,J4='P214-241'!F$8) -> FALSE | N4: =IF(NOT(OR(K4:M4)),"Reject",IF(OR(AND(OR(L4:M4),K4),AND(OR(L4:M4),NOT(K4))),"FurtherEvaluate","Accept")) -> FurtherEvaluate
A5: Baseball & More | B5: 75000 | C5: 60009 | D5: 55342 | E5: 13892 | F5: 37500 | G5: 4A | H5: 2 | I5: 70 | J5: 1 | K5: =IF(C5="","",E5<D5*'P214-241'!C$3) -> FALSE | L5: =OR(H5='P214-241'!C$5,I5>'P214-241'!D$5) -> FALSE | M5: =AND(F5*1000>='P214-241'!C$8,H5<='P214-241'!D$8,I5>'P214-241'!E$8,J5='P214-241'!F$8) -> FALSE | N5: Reject
A6: Canadian Ski Club | B6: 33000 | C6: 35039 | D6: 50921 | E6: 495 | F6: 1650 | G6: BA | H6: 2 | I6: 43 | J6: 1 | K6: =IF(C6="","",E6<D6*'P214-241'!C$3) -> TRUE | L6: =OR(H6='P214-241'!C$5,I6>'P214-241'!D$5) -> FALSE | M6: =AND(F6*1000>='P214-241'!C$8,H6<='P214-241'!D$8,I6>'P214-241'!E$8,J6='P214-241'!F$8) -> FALSE | N6: Accept
A7: Concord Pro Shop | F7: 10000 | G7: 4A | H7: 1 | I7: 91 | J7: 1 | L7: =OR(H7='P214-241'!C$5,I7>'P214-241'!D$5) -> TRUE | M7: =AND(F7*1000>='P214-241'!C$8,H7<='P214-241'!D$8,I7>'P214-241'!E$8,J7='P214-241'!F$8) -> TRUE | N7: FurtherEvaluate
A8: Everything Golf | B8: 25000 | C8: 15221 | D8: 9483 | E8: 2899 | F8: 1250 | G8: 3A | H8: 3 | I8: 76 | J8: 1 | K8: =IF(C8="","",E8<D8*'P214-241'!C$3) -> FALSE | L8: =OR(H8='P214-241'!C$5,I8>'P214-241'!D$5) -> FALSE | M8: =AND(F8*1000>='P214-241'!C$8,H8<='P214-241'!D$8,I8>'P214-241'!E$8,J8='P214-241'!F$8) -> FALSE | N8: Reject
A9: Lake Pro Shops | B9: 42000 | C9: 80498 | D9: 81126 | E9: 0 | F9: 2100 | G9: 3A | H9: 2 | I9: 87 | J9: 1 | K9: =IF(C9="","",E9<D9*'P214-241'!C$3) -> TRUE | L9: =OR(H9='P214-241'!C$5,I9>'P214-241'!D$5) -> FALSE | M9: =AND(F9*1000>='P214-241'!C$8,H9<='P214-241'!D$8,I9>'P214-241'!E$8,J9='P214-241'!F$8) -> TRUE | N9: FurtherEvaluate
A10: Mars Dept. Store | B10: 27000 | C10: 35354 | D10: 20666 | E10: 0 | F10: 213 | G10: BB | H10: 3 | I10: 94 | J10: 1 | K10: =IF(C10="","",E10<D10*'P214-241'!C$3) -> TRUE | L10: =OR(H10='P214-241'!C$5,I10>'P214-241'!D$5) -> TRUE | M10: =AND(F10*1000>='P214-241'!C$8,H10<='P214-241'!D$8,I10>'P214-241'!E$8,J10='P214-241'!F$8) -> FALSE | N10: FurtherEvaluate
A11: RG Bradley | B11: 46000 | C11: 90970 | D11: 18343 | E11: 0 | F11: 2300 | G11: 3A | H11: 1 | I11: 21 | J11: 1 | K11: =IF(C11="","",E11<D11*'P214-241'!C$3) -> TRUE | L11: =OR(H11='P214-241'!C$5,I11>'P214-241'!D$5) -> TRUE | M11: =AND(F11*1000>='P214-241'!C$8,H11<='P214-241'!D$8,I11>'P214-241'!E$8,J11='P214-241'!F$8) -> FALSE | N11: FurtherEvaluate
A12: RX for Sports | B12: 15000 | C12: 5663 | D12: 3014 | E12: 0 | F12: 750 | G12: 2A | H12: 1 | I12: 59 | J12: 1 | K12: =IF(C12="","",E12<D12*'P214-241'!C$3) -> TRUE | L12: =OR(H12='P214-241'!C$5,I12>'P214-241'!D$5) -> TRUE | M12: =AND(F12*1000>='P214-241'!C$8,H12<='P214-241'!D$8,I12>'P214-241'!E$8,J12='P214-241'!F$8) -> FALSE | N12: FurtherEvaluate
A13: School Sports Supply | B13: 45000 | C13: 50278 | D13: 32338 | E13: 0 | F13: 2250 | G13: 3A | H13: 3 | I13: 91 | J13: 1 | K13: =IF(C13="","",E13<D13*'P214-241'!C$3) -> TRUE | L13: =OR(H13='P214-241'!C$5,I13>'P214-241'!D$5) -> TRUE | M13: =AND(F13*1000>='P214-241'!C$8,H13<='P214-241'!D$8,I13>'P214-241'!E$8,J13='P214-241'!F$8) -> FALSE | N13: FurtherEvaluate
A14: Ski World | B14: 26000 | C14: 25864 | D14: 28154 | E14: 0 | F14: 300 | G14: BA | H14: 2 | I14: 82 | J14: 1 | K14: =IF(C14="","",E14<D14*'P214-241'!C$3) -> TRUE | L14: =OR(H14='P214-241'!C$5,I14>'P214-241'!D$5) -> FALSE | M14: =AND(F14*1000>='P214-241'!C$8,H14<='P214-241'!D$8,I14>'P214-241'!E$8,J14='P214-241'!F$8) -> FALSE | N14: Accept
A15: Sneaker Kingdom | B15: 45000 | C15: 40157 | D15: 25379 | E15: 0 | F15: 2250 | G15: 3A | H15: 2 | I15: 71 | J15: 1 | K15: =IF(C15="","",E15<D15*'P214-241'!C$3) -> TRUE | L15: =OR(H15='P214-241'!C$5,I15>'P214-241'!D$5) -> FALSE | M15: =AND(F15*1000>='P214-241'!C$8,H15<='P214-241'!D$8,I15>'P214-241'!E$8,J15='P214-241'!F$8) -> TRUE | N15: FurtherEvaluate
A16: Sports & Stuff | B16: 15000 | C16: 15898 | D16: 14732 | E16: 14383 | F16: 450 | G16: BA | H16: 1 | I16: 67 | J16: 1 | K16: =IF(C16="","",E16<D16*'P214-241'!C$3) -> FALSE | L16: =OR(H16='P214-241'!C$5,I16>'P214-241'!D$5) -> TRUE | M16: =AND(F16*1000>='P214-241'!C$8,H16<='P214-241'!D$8,I16>'P214-241'!E$8,J16='P214-241'!F$8) -> FALSE | N16: FurtherEvaluate
A17: Toy Kingdom | B17: 22000 | C17: 10073 | D17: 1047 | E17: 0 | F17: 1100 | G17: 3A | H17: 3 | I17: 14 | J17: 1 | K17: =IF(C17="","",E17<D17*'P214-241'!C$3) -> TRUE | L17: =OR(H17='P214-241'!C$5,I17>'P214-241'!D$5) -> FALSE | M17: =AND(F17*1000>='P214-241'!C$8,H17<='P214-241'!D$8,I17>'P214-241'!E$8,J17='P214-241'!F$8) -> FALSE | N17: Accept
A18: Under the Sea | B18: 45000 | C18: 95411 | D18: 64418 | E18: 0 | F18: 150 | G18: CB | H18: 4 | I18: 79 | J18: 2 | K18: =IF(C18="","",E18<D18*'P214-241'!C$3) -> TRUE | L18: =OR(H18='P214-241'!C$5,I18>'P214-241'!D$5) -> FALSE | M18: =AND(F18*1000>='P214-241'!C$8,H18<='P214-241'!D$8,I18>'P214-241'!E$8,J18='P214-241'!F$8) -> FALSE | N18: Accept
A19: US Olympic Team | B19: 20000 | C19: 5621 | D19: 6171 | E19: 0 | F19: 1000 | G19: 3A | H19: 1 | I19: 87 | J19: 1 | K19: =IF(C19="","",E19<D19*'P214-241'!C$3) -> TRUE | L19: =OR(H19='P214-241'!C$5,I19>'P214-241'!D$5) -> TRUE | M19: =AND(F19*1000>='P214-241'!C$8,H19<='P214-241'!D$8,I19>'P214-241'!E$8,J19='P214-241'!F$8) -> TRUE | N19: FurtherEvaluate
A20: WWW Sports Inc. | B20: 100000 | C20: 60009 | D20: 60354 | E20: 0 | F20: 500000 | G20: 5A | H20: 2 | I20: 97 | J20: 1 | K20: =IF(C20="","",E20<D20*'P214-241'!C$3) -> TRUE | L20: =OR(H20='P214-241'!C$5,I20>'P214-241'!D$5) -> TRUE | M20: =AND(F20*1000>='P214-241'!C$8,H20<='P214-241'!D$8,I20>'P214-241'!E$8,J20='P214-241'!F$8) -> TRUE | N20: FurtherEvaluate
A21: Zip & Sons | B21: 10000 | C21: 15490 | D21: 22760 | E21: 0 | F21: 620 | G21: 1A | H21: 2 | I21: 96 | J21: 1 | K21: =IF(C21="","",E21<D21*'P214-241'!C$3) -> TRUE | L21: =OR(H21='P214-241'!C$5,I21>'P214-241'!D$5) -> TRUE | M21: =AND(F21*1000>='P214-241'!C$8,H21<='P214-241'!D$8,I21>'P214-241'!E$8,J21='P214-241'!F$8) -> TRUE | N21: FurtherEvaluate
A24: =IF('P214-241'!A10="","",'P214-241'!A10) -> Formatting Rules
A25: =IF('P214-241'!A11="","",'P214-241'!A11) -> Rule 1 | B25: =IF('P214-241'!B11="","",'P214-241'!B11) -> Net worth is less than $1,000,000.00 | C25: =IF('P214-241'!C11="","",'P214-241'!C11) -> 1000000
A26: =IF('P214-241'!A12="","",'P214-241'!A12) -> Rule 2 | B26: =IF('P214-241'!B12="","",'P214-241'!B12) -> Net worth is greater than $10,000,000.00 | C26: =IF('P214-241'!C12="","",'P214-241'!C12) -> 10000000

Sheet P242-243
A1: PO 527 Bidder List Financial Evaluation
A2: Bidder List | B2: Previous Experience Grade | C2: Net Worth (Dollars) | D2: D&B Composite Credit Appraisal (1 Best) | E2: D&B PAYDEX (100 Best) | F2: D&B Stress Risk Class (1 Best) | G2: =A13&": "&B13 -> Rule 1: D&B Stress Risk Class (1 Best) Hurdle = 1 | H2: =A14&": "&B14 -> Rule 2: D&B PAYDEX (100 Best) is greater than 60 AND D&B Composite Credit Appraisal (1 Best) is less than or equal to 2 AND Net Worth (Dollars) are greater than $1,000,000.00 | I2: =A15&": "&B15 -> Rule 3: D&B PAYDEX (100 Best) is greater than or equal to 85 OR Previous Experience Grade is Satisfactory
A3: Logistic SB Inc. | B3: None | C3: 2500000 | D3: 2 | E3: 85 | F3: 1 | G3: =F3=C$13 -> TRUE | H3: =AND(E3>C$14,D3<=D$14,C3>E$14) -> TRUE | I3: =OR(E3>=C$15,B3=D$15) -> TRUE
A4: XBE Corporation | B4: Satisfactory | C4: 237000000 | D4: 1 | E4: 90 | F4: 1 | G4: =F4=C$13 -> TRUE | H4: =AND(E4>C$14,D4<=D$14,C4>E$14) -> TRUE | I4: =OR(E4>=C$15,B4=D$15) -> TRUE
A5: Software Solutions | B5: Satisfactory | C5: 1823000 | D5: 3 | E5: 55 | F5: 2 | G5: =F5=C$13 -> FALSE | H5: =AND(E5>C$14,D5<=D$14,C5>E$14) -> FALSE | I5: =OR(E5>=C$15,B5=D$15) -> TRUE
A6: Exceed RW | B6: Unsatisfactory | C6: 75000 | D6: 2 | E6: 38 | F6: 1 | G6: =F6=C$13 -> TRUE | H6: =AND(E6>C$14,D6<=D$14,C6>E$14) -> FALSE | I6: =OR(E6>=C$15,B6=D$15) -> FALSE
A7: Roberts Wise Inc. | B7: Satisfactory | C7: 680000 | D7: 3 | E7: 43 | F7: 1 | G7: =F7=C$13 -> TRUE | H7: =AND(E7>C$14,D7<=D$14,C7>E$14) -> FALSE | I7: =OR(E7>=C$15,B7=D$15) -> TRUE
C9: Did any evaluate to TRUE? | G9: =OR(G3:G7) -> TRUE | H9: =OR(H3:H7) -> TRUE | I9: =OR(I3:I7) -> TRUE
C10: Did all not evaluate to TRUE? Or Didd all come out false? | G10: =NOT(G9) -> FALSE | H10: =NOT(H9) -> FALSE | I10: =NOT(I9) -> FALSE
B12: Assumptions
A13: Rule 1 | B13: =CLEAN(F2)&" Hurdle = "&C13 -> D&B Stress Risk Class (1 Best) Hurdle = 1 | C13: 1
A14: Rule 2 | B14: =E2&" is greater than "&C14&" AND "&D2&" is less than or equal to "&D14&" AND "&C2&" are greater than "&DOLLAR(E14) -> D&B PAYDEX (100 Best) is greater than 60 AND D&B Composite Credit Appraisal (1 Best) is less than or equal to 2 AND Net Worth (Dollars) are greater than $1,000,000.00 | C14: 60 | D14: 2 | E14: 1000000
A15: Rule 3 | B15: =E2&" is greater than or equal to "&C15&" OR "&B2&" is "&D15 -> D&B PAYDEX (100 Best) is greater than or equal to 85 OR Previous Experience Grade is Satisfactory | C15: 85 | D15: Satisfactory
B16: Format if TRUE = Green | C16: TRUE
B17: Format if FALSE = Grey | C17: FALSE
B18: Format Bidder name who had Previous Eperience Grade "Unsatisfactory" | C18: Unsatisfactory
A20: Note:
A21: Conditional formatting in column A is based on values in Column B. The formula is: =B3=$C$18

Sheet P244-257
A1: TheZone Customer Accounts - Credit & Payment Status
A2: Customer Name | B2: Customer Type | C2: Current Balance Due | D2: =B21&"-Days Past Due" -> 30-Days Past Due | E2: =C21&"-Days Past Due" -> 60-Days Past Due | F2: =D21&"-Days Past Due" -> 90-Days Past Due | G2: Total Past Due Balance | H2: Current Credit Status (FALSE means that they have been denied credit but may still owe $) | I2: =A11&" or "&A12 -> Credit Approved or Credit Denied | J2: =A17 -> If the 90-Days Past Due balance is greater than $200.00 then the large of $100.00 or 10% of 90 day balance | K2: =A19&": "&B21&" = "&DOLLAR(B19)&"; "&C21&" = "&DOLLAR(C19)&"; "&D21&" = "&DOLLAR(D19) -> Alternative Penalty Scheme: 30 = $25.00; 60 = $50.00; 90 = $100.00 | L2: =B2&" Late Fee" -> Customer Type Late Fee
A3: Athletic Gear Corp. | B3: A | C3: 8612 | D3: 0 | E3: 0 | F3: 0 | G3: =SUM(D3:F3) -> 0 | H3: TRUE | I3: =IF(H3,A$11,A$12) -> Credit Approved | J3: =IF(F3>B$17,MAX(C$17,F3*D$17),0) -> 0 | K3: =IF(F3>0,D$19,IF(E3>0,C$19,IF(D3>0,B$19,0))) -> 0 | L3: =IF(G3>0,IF(B3=C$26,B$26,IF(B3=C$27,B$27,IF(B3=C$28,B$28))),0) -> 0
A4: Baltimore O's | B4: B | C4: 0 | D4: 0 | E4: 0 | F4: 0 | G4: 0 | H4: TRUE | I4: Credit Approved | J4: 0 | K4: 0 | L4: 0
A5: Baseball & More | B5: A | C5: 2345 | D5: 3473 | E5: 5556.8 | F5: 4862.2 | G5: =SUM(D5:F5) -> 13892 | H5: TRUE | I5: Credit Approved | J5: 486.22 | K5: 100 | L5: 50
A6: Canadian Ski Club | B6: C | C6: 0 | D6: 345 | E6: 0 | F6: 150 | G6: 495 | H6: TRUE | I6: Credit Approved | J6: 0 | K6: 100 | L6: 150
A7: Everything Golf | B7: A | C7: 0 | D7: 0 | E7: 2000 | F7: 899 | G7: 2899 | H7: FALSE | I7: Credit Denied | J7: 100 | K7: 100 | L7: 50
A8: Sports & Stuff | B8: A | C8: 0 | D8: 14000 | E8: 383 | F8: 0 | G8: 14383 | H8: FALSE | I8: Credit Denied | J8: 0 | K8: 50 | L8: 50
A10: Assumptions
A11: Credit Approved
A12: Credit Denied
A14: Note: Order for non-mutually exclusive criteria matteres here because you can have balances in all three categroies (not mutually exclusive), and so you must test
B16: Minimum before applying surcharge | C16: Minimun surcharge | D16: Surchanrge % of 90 day balance
A17: ="If the "&F2&" balance is greater than "&DOLLAR(B17)&" then the large of "&DOLLAR(C17)&" or "&TEXT(D17,"0%")&" of 90 day balance" -> If the 90-Days Past Due balance is greater than $200.00 then the large of $100.00 or 10% of 90 day balance | B17: 200 | C17: 100 | D17: 0.1
B18: ="Fee for "&D2 -> Fee for 30-Days Past Due | C18: ="Fee for "&E2 -> Fee for 60-Days Past Due | D18: ="Fee for "&F2 -> Fee for 90-Days Past Due
A19: Alternative Penalty Scheme | B19: 25 | C19: 50 | D19: 100
B20: Past Due | C20: Past Due | D20: Past Due
A21: Days | B21: 30 | C21: 60 | D21: 90
A23: This example is of criteria that is mutually exclusive, the order of the logical tests does not matter.
B25: Late Fee | C25: Cust Type
A26: =C26&" Cust Type Late Fee" -> A Cust Type Late Fee | B26: 50 | C26: A
A27: =C27&" Cust Type Late Fee" -> B Cust Type Late Fee | B27: 100 | C27: B
A28: =C28&" Cust Type Late Fee" -> C Cust Type Late Fee | B28: 150 | C28: C
A31: VLOOKUP if often better than many Ifs. But if you use Ifs, better to go from low to high or high to low instead of between.
B32: Hurdle | C32: Penalty
A33: ="Level 1: less tha "&DOLLAR(B33) -> Level 1: less tha $1,000.00 | B33: 1000 | C33: 25
A34: ="Level 2: less than "&DOLLAR(B35)&" and greater than or equal to "&DOLLAR(B34) -> Level 2: less than $5,000.00 and greater than or equal to $1,000.00 | B34: 1000 | C34: 50
A35: ="Level 3 greater than "&DOLLAR(B35) -> Level 3 greater than $5,000.00 | B35: 5000 | C35: 100
A39: Past Due | B39: =IF(A40<B$33,C$33,IF(A40<B$35,C$34,C$35)) | E39: =IF(A40>B$35,C$35,IF(A40>B$34,C$34,C$33)) | I39: =IF(AND(A40>=B$34,A40<B$35),C$34,IF(A40<B$33,C$33,C$35))
A40: 670 | B40: =IF(A40<B$33,C$33,IF(A40<B$35,C$34,C$35)) -> 25 | E40: =IF(A40>B$35,C$35,IF(A40>B$34,C$34,C$33)) -> 25 | I40: =IF(AND(A40>=B$34,A40<B$35),C$34,IF(A40<B$33,C$33,C$35)) -> 25
A41: 141 | B41: =IF(A41<B$33,C$33,IF(A41<B$35,C$34,C$35)) -> 25 | E41: =IF(A41>B$35,C$35,IF(A41>B$34,C$34,C$33)) -> 25 | I41: =IF(AND(A41>=B$34,A41<B$35),C$34,IF(A41<B$33,C$33,C$35)) -> 25
A42: 3893 | B42: 50 | E42: 50 | I42: 50
A43: 4741 | B43: 50 | E43: 50 | I43: 50
A44: 8434 | B44: 100 | E44: 100 | I44: 100
A45: 7401 | B45: 100 | E45: 100 | I45: 100
A46: 4819 | B46: 50 | E46: 50 | I46: 50
A47: 8344 | B47: 100 | E47: 100 | I47: 100

Sheet P257-259
A1: Fixed Fee & 90 Day Penalties | D1: Graduated Penalties - Range | H1: Penalty | J1: Category Penalties
A2: Fixed Fee Penalty | B2: 50 | D2: Graduated penalty < | G2: 1000 | H2: 0 | J2: Utilities | K2: 0.1
A3: Hurdle for penalty | B3: 100 | D3: Graduated penalty >=1000 but < | G3: 5000 | H3: 100 | J3: Labor | K3: 0.15
A4: 90-day penalty percentage | B4: 0.1 | D4: Graduated penalty >= | G4: 5000 | H4: 200 | J4: Other | K4: 0.05
A7: TheZone Accounts Payable - Outstanding Balance Report
A8: Vendor Name | B8: Category | C8: Applies Fixed Penalty | D8: 30-Days Past Due | E8: 60-Days Past Due | F8: 90-Days Past Due | G8: Total Past Due Balance | H8: Fixed Penalty | I8: 90-Day Penalty | J8: Graduated Penalty | K8: Category Penalty
A9: RTF Electric | B9: Utilities | C9: TRUE | D9: 16254 | E9: 0 | F9: 0 | G9: =SUM(D9:F9) -> 16254 | H9: =IF(C9,B$2,0) -> 50 | I9: =IF(F9>B$3,F9*B$4,0) -> 0 | J9: =IF(G9<G$2,H$2,IF(G9<G$3,H$3,H$4)) -> 200 | K9: =IF(B9=J$2,K$2*G9,IF(B9=J$3,K$3*G9,K$4*G9)) -> 1625.4
A10: Ross County Water & Sewer | B10: Utilities | C10: FALSE | D10: 1435 | E10: 0 | F10: 0 | G10: 1435 | H10: 0 | I10: 0 | J10: 100 | K10: 143.5
A11: YNC Trucking | B11: Transportation | C11: TRUE | D11: 0 | E11: 0 | F11: 3300 | G11: 3300 | H11: 50 | I11: 330 | J11: 100 | K11: 165
A12: Italian Leather Group Ltd. | B12: Raw Materials | C12: TRUE | D12: 6756 | E12: 0 | F12: 5674 | G12: 12430 | H12: 50 | I12: 567.4 | J12: 200 | K12: 621.5
A13: Union Plastics | B13: Raw Materials | C13: TRUE | D13: 0 | E13: 436 | F13: 0 | G13: 436 | H13: 50 | I13: 0 | J13: 0 | K13: 21.8
A14: Freight to Go | B14: Transportation | C14: FALSE | D14: 0 | E14: 0 | F14: 873 | G14: 873 | H14: 0 | I14: 87.3 | J14: 0 | K14: 43.65
A15: Temps R'Us | B15: Labor | C15: FALSE | D15: 2700 | E15: 0 | F15: 0 | G15: 2700 | H15: 0 | I15: 0 | J15: 100 | K15: 405
A16: Notworth Telephone | B16: Telephone | C16: TRUE | D16: 0 | E16: 0 | F16: 2345 | G16: 2345 | H16: 50 | I16: 234.5 | J16: 100 | K16: 117.25

Sheet P276-278
A1: Application for Employment
A2: Name | B2: College GPA | C2: Major Code | D2: Refer-ences | E2: Personal Interview Rating | F2: Work Experience | G2: Employment ExamScore | H2: School Rank | I2: InvalidScores/Major? | J2: Automatically Disqualified | K2: Automatically Hired | L2: Not Automatically Disqualified | M2: Not Automatically Hired | N2: No Decision | O2: No Decision
A3: Michael | B3: 3.6 | C3: 2 | D3: 3 | E3: 5 | F3: TRUE | G3: 700 | H3: 12 | I3: =OR(B3<E$19,B3>E$20,C3<B$21,C3>B$25,G3<B$29,G3>B$30) -> FALSE | J3: =OR(I3,B3<E$25,D3<E$26,G3<E$27,E3<E$28) -> FALSE | K3: =AND(B3>H$19,C3>=H$20,C3<=H$21,H3<=H$22,G3>H$23,E3>=H$24,F3) -> FALSE | L3: =NOT(J3) -> TRUE | M3: TRUE | N3: =NOT(OR(J3:K3)) -> TRUE | O3: =AND(L3:M3) -> TRUE
A4: Brian | B4: 3.9 | C4: 18 | D4: 3 | E4: 3 | F4: FALSE | G4: 850 | H4: 1 | I4: TRUE | J4: TRUE | K4: FALSE | L4: FALSE | M4: TRUE | N4: FALSE | O4: FALSE
A5: George | B5: 2.1 | C5: 15 | D5: 3 | E5: 2 | F5: FALSE | G5: 780 | H5: 5 | I5: FALSE | J5: TRUE | K5: FALSE | L5: FALSE | M5: TRUE | N5: FALSE | O5: FALSE
A6: Jasen | B6: 3 | C6: 30 | D6: 3 | E6: 5 | F6: TRUE | G6: 710 | H6: 3 | I6: FALSE | J6: FALSE | K6: FALSE | L6: TRUE | M6: TRUE | N6: TRUE | O6: TRUE
A7: Cindy | B7: 3.2 | C7: 100 | D7: 4 | E7: 3 | F7: TRUE | G7: 600 | H7: 26 | I7: FALSE | J7: FALSE | K7: FALSE | L7: TRUE | M7: TRUE | N7: TRUE | O7: TRUE
A8: Sara | B8: 3.7 | C8: 4 | D8: 3 | E8: 6 | F8: TRUE | G8: 740 | H8: 15 | I8: FALSE | J8: FALSE | K8: TRUE | L8: TRUE | M8: FALSE | N8: FALSE | O8: FALSE
A9: Courtney | B9: 4 | C9: 16 | D9: 5 | E9: 4 | F9: FALSE | G9: 720 | H9: 8 | I9: FALSE | J9: FALSE | K9: FALSE | L9: TRUE | M9: TRUE | N9: TRUE | O9: TRUE
A10: Scott | B10: 2.1 | C10: 260 | D10: 2 | E10: 2 | F10: FALSE | G10: 590 | H10: 33 | I10: TRUE | J10: TRUE | K10: FALSE | L10: FALSE | M10: TRUE | N10: FALSE | O10: FALSE
A11: Mark | B11: 2.8 | C11: 20 | D11: 3 | E11: 5 | F11: FALSE | G11: 760 | H11: 6 | I11: FALSE | J11: FALSE | K11: FALSE | L11: TRUE | M11: TRUE | N11: TRUE | O11: TRUE
H12: Total | I12: =SUM(IF(I3:I11=TRUE,1,0)) -> 2 | J12: =SUM(IF(J3:J11=TRUE,1,0)) -> 3 | K12: =SUM(IF(K3:K11=TRUE,1,0)) -> 1 | L12: =SUM(IF(L3:L11=TRUE,1,0)) -> 6 | M12: =SUM(IF(M3:M11=TRUE,1,0)) -> 8 | N12: =SUM(IF(N3:N11=TRUE,1,0)) -> 5
H13: Total | I13: =COUNTIF(I3:I11,TRUE) -> 2 | J13: 3 | K13: 1 | L13: 6 | M13: 8 | N13: 5
G14: All are invalid | I14: =AND(I3:I11) -> FALSE | J14: FALSE | K14: FALSE | L14: FALSE | M14: FALSE | N14: FALSE
G15: Any are invalid? | I15: =OR(I3:I11) -> TRUE | J15: TRUE | K15: TRUE | L15: TRUE | M15: TRUE | N15: TRUE
A16: Assumptions
A17: Job Applicants must supply the following information | D17: =A32 -> Automatically disqualified | G17: =A33 -> Automatically hired
A18: Valid GPA min | B18: 1.5 | D18: If any of these are TRUE | G18: If all of these are TRUE
A19: Valid GPA max | B19: 4 | D19: =A18 -> Valid GPA min | E19: =B18 -> 1.5 | G19: GPA score greater than | H19: 3.5
A20: Standardized universal Major Code | D20: =A19 -> Valid GPA max | E20: =B19 -> 4 | G20: Major Code min | H20: 1
A21: Engeneering | B21: 1 | D21: =A29 -> Valid Employment Exam Score min | E21: =B29 -> 200 | G21: Major Code max | H21: 20
A22: Business | B22: 2 | D22: =A30 -> Valid Employment Exam Score max | E22: =B30 -> 800 | G22: =A31&" less than or equal to" -> Undergraduate school ranking less than or equal to | H22: 25
A23: Economics | B23: 3 | D23: ="Valid "&A$20&" min" -> Valid Standardized universal Major Code min | E23: =B21 -> 1 | G23: Employment Exam greater than | H23: 700
A24: Physical Science | B24: 4 | D24: ="Valid "&A$20&" max" -> Valid Standardized universal Major Code max | E24: =B25 -> 250 | G24: Personal Interview rating greater than or equal to | H24: 4
A25: Last one | B25: 250 | D25: GPA less than | E25: 2.5 | G25: Work Experience | H25: =B28 -> TRUE
A26: Reference letters less than | B26: 3 | D26: =A26 -> Reference letters less than | E26: =B26 -> 3
A27: Personal Interview rating less than | B27: 3 | D27: Employment Exam less than | E27: 600
A28: Work Experience | B28: TRUE | C28: FALSE | D28: =A27 -> Personal Interview rating less than | E28: =B27 -> 3
A29: Valid Employment Exam Score min | B29: 200
A30: Valid Employment Exam Score max | B30: 800
A31: Undergraduate school ranking
A32: Automatically disqualified
A33: Automatically hired
A34: Undecided | B34: If the applicant does not fit into one of the other categories

Sheet P278-280
A1: RJ Construction - Painting Estimator
A3: Room | B3: Length in Feet | C3: Width in Feet | D3: Height in Feet | E3: Square Feet (SF) of Wall/Ceiling | F3: Wall Condition | G3: =A19 -> New Color Lighter ? | H3: =A21 -> Grade of Paint | I3: Wall Repairs & Primer Costs | J3: First Coat Painting Costs | K3: Second Coat Painting Costs | L3: Paint Quality Adjustment | M3: Total Costs | N3: High Price?
A4: Kitchen | B4: 20 | C4: 15 | D4: 8 | E4: =2*B4*D4+2*C4*D4+B4*C4 -> 860 | F4: 2 | G4: TRUE | H4: Premium | I4: =IF(F4=B$16,E4*C$16,0) -> 0 | J4: =IF(F4=B$14,E4*D$14,IF(F4=B$15,D$15*E4,E4*D$16)) -> 430 | K4: =IF(G4=B$19,E4*D$19,IF(F4=B$16,E4*B$18,0)) -> 258 | L4: =IF(H4=A$22,B$22*E4,IF(H4=A$23,B$23*E4,0)) -> 129 | M4: =SUM(I4:L4) -> 817 | N4: =M4>B$26 -> TRUE
A5: Bedroom1 | B5: 16 | C5: 12 | D5: 8 | E5: =2*B5*D5+2*C5*D5+B5*C5 -> 640 | F5: 1 | G5: FALSE | H5: Economy | I5: =IF(F5=B$16,E5*C$16,0) -> 0 | J5: =IF(F5=B$14,E5*D$14,IF(F5=B$15,D$15*E5,E5*D$16)) -> 288 | K5: =IF(G5=B$19,E5*D$19,IF(F5=B$16,E5*B$18,0)) -> 0 | L5: =IF(H5=A$22,B$22*E5,IF(H5=A$23,B$23*E5,0)) -> -64 | M5: =SUM(I5:L5) -> 224 | N5: =M5>B$26 -> FALSE
A6: Bedroom2 | B6: 10 | C6: 12 | D6: 8 | E6: =2*B6*D6+2*C6*D6+B6*C6 -> 472 | F6: 1 | G6: FALSE | H6: Superior | I6: =IF(F6=B$16,E6*C$16,0) -> 0 | J6: =IF(F6=B$14,E6*D$14,IF(F6=B$15,D$15*E6,E6*D$16)) -> 212.4 | K6: =IF(G6=B$19,E6*D$19,IF(F6=B$16,E6*B$18,0)) -> 0 | L6: =IF(H6=A$22,B$22*E6,IF(H6=A$23,B$23*E6,0)) -> 0 | M6: =SUM(I6:L6) -> 212.4 | N6: =M6>B$26 -> FALSE
A7: Bath | B7: 8 | C7: 6 | D7: 8 | E7: =2*B7*D7+2*C7*D7+B7*C7 -> 272 | F7: 3 | G7: FALSE | H7: Superior | I7: =IF(F7=B$16,E7*C$16,0) -> 136 | J7: =IF(F7=B$14,E7*D$14,IF(F7=B$15,D$15*E7,E7*D$16)) -> 163.2 | K7: =IF(G7=B$19,E7*D$19,IF(F7=B$16,E7*B$18,0)) -> 95.2 | L7: =IF(H7=A$22,B$22*E7,IF(H7=A$23,B$23*E7,0)) -> 0 | M7: =SUM(I7:L7) -> 394.4 | N7: =M7>B$26 -> FALSE
A8: Total | I8: =SUM(I4:I7) -> 136 | J8: =SUM(J4:J7) -> 1093.6 | K8: =SUM(K4:K7) -> 353.2 | L8: =SUM(L4:L7) -> 65 | M8: =SUM(M4:M7) -> 1647.8
A9: Total Discounted Price: | M9: =IF(M8>=D25,M8*(1-E25),IF(AND(M8<D25,M8>=D24),(1-E24)*M8,IF(AND(M8<D24,M8>=D23),(1-E23)*M8,M8))) -> 1483.02
J11: alternative | L11: alternative | M11: alternative
A12: Assumptions | J12: =E4*VLOOKUP(F4,PaintCost,3,0) -> 430 | L12: =VLOOKUP(H4,GradePaint,2,0)*E4 -> 129 | M12: =M8*(1-VLOOKUP(M9,$D$22:$E$25,2)) -> 1483.02
A13: Wall Condition | B13: NO. | C13: Cost primer | D13: Cost of first coat | J13: =E5*VLOOKUP(F5,PaintCost,3,0) -> 288 | L13: =VLOOKUP(H5,GradePaint,2,0)*E5 -> -64
A14: Excellent | B14: 1 | C14: 0 | D14: 0.45 | J14: =E6*VLOOKUP(F6,PaintCost,3,0) -> 212.4 | L14: =VLOOKUP(H6,GradePaint,2,0)*E6 -> 0
A15: Reasonable | B15: 2 | C15: 0 | D15: 0.5 | J15: =E7*VLOOKUP(F7,PaintCost,3,0) -> 163.2 | L15: =VLOOKUP(H7,GradePaint,2,0)*E7 -> 0
A16: Poor | B16: 3 | C16: 0.5 | D16: 0.6
A18: Cost per square foot for second coat when poor | B18: 0.35
A19: New Color Lighter ? | B19: TRUE | C19: FALSE | D19: 0.3
A21: Grade of Paint | B21: Cost | D21: Discounts
A22: Premium | B22: 0.15 | D22: 0 | E22: 0
A23: Economy | B23: -0.1 | D23: 1000 | E23: 0.1
A24: Superior | B24: 0 | D24: 2500 | E24: 0.12
D25: 5000 | E25: 0.15
A26: High Price | B26: 450

Sheet PO611
A1: PO 611 Bidder List Financial Evaluation
A2: Customer Name | B2: Net Worth (Dollars) | C2: D&B CCAR (1 Best) | D2: D&B PAYDEX (100 Best) | E2: D&B Stress Risk Class (1 Best) | F2: Rule #1 | G2: Rule #2 | H2: Rule #3 | I2: Final Recommendation
A3: BFF Industries | B3: 157795 | C3: 1 | D3: 90 | E3: 1 | F3: =B3>B$16 -> FALSE | G3: =AND(C3=B$17,E3=B$18) -> TRUE | H3: =D3>B$19 -> FALSE | I3: =IF(NOT(OR(F3:H3)),A$21,IF(OR(AND(F3,NOT(OR(G3:H3))),AND(G3,NOT(OR(F3,H3)))),A$22,A$20)) -> Get more data
A4: NRKK | B4: 387000 | C4: 4 | D4: 83 | E4: 3 | F4: FALSE | G4: FALSE | H4: FALSE | I4: Exclude
A5: Pergo Molding | B5: 775961 | C5: 2 | D5: 98 | E5: 1 | F5: TRUE | G5: FALSE | H5: TRUE | I5: Allow to bid
A6: Allma | B6: 17043973 | C6: 3 | D6: 55 | E6: 2 | F6: TRUE | G6: FALSE | H6: FALSE | I6: Get more data
A7: JF & Sons | B7: 35446678 | C7: 1 | D7: 32 | E7: 1 | F7: TRUE | G7: TRUE | H7: FALSE | I7: Allow to bid
A8: Argree Inc. | B8: 63545102 | C8: 3 | D8: 0 | E8: 1 | F8: TRUE | G8: FALSE | H8: FALSE | I8: Get more data
A9: RGM Plastics | B9: 64831692 | C9: 2 | D9: 85 | E9: 1 | F9: TRUE | G9: FALSE | H9: FALSE | I9: Get more data
A10: Soto Services | B10: 182686331 | C10: 1 | D10: 73 | E10: 1 | F10: TRUE | G10: TRUE | H10: FALSE | I10: Allow to bid
A11: NE Plastic | B11: 239227375 | C11: 2 | D11: 79 | E11: 2 | F11: TRUE | G11: FALSE | H11: FALSE | I11: Get more data
A12: SPDM | B12: 487215654 | C12: 2 | D12: 97 | E12: 1 | F12: TRUE | G12: FALSE | H12: TRUE | I12: Allow to bid
A15: Assumptions (HURDLES) | D15: Total outcomes = | E15: =E18^E17 -> 8
A16: =B2 -> Net Worth (Dollars) | B16: 500000
A17: =C2 -> D&B CCAR (1 Best) | B17: 1 | D17: Experiments | E17: 3
A18: =CLEAN(E2) -> D&B Stress Risk Class (1 Best) | B18: 1 | D18: Outcomes for each experiment | E18: 2
A19: =D2 -> D&B PAYDEX (100 Best) | B19: 90
A20: Allow to bid | D20: =A21 -> Exclude | E20: FALSE | F20: FALSE | G20: FALSE
A21: Exclude
A22: Get more data | D22: =A22 -> Get more data | E22: TRUE | F22: FALSE | G22: FALSE
E23: FALSE | F23: TRUE | G23: FALSE
D25: =A20 -> Allow to bid | E25: TRUE | F25: TRUE | G25: FALSE
E26: TRUE | F26: TRUE | G26: TRUE
E27: FALSE | F27: TRUE | G27: TRUE
E28: TRUE | F28: FALSE | G28: TRUE
E29: FALSE | F29: TRUE | G29: TRUE

Sheet Sheet2

Sheet Sheet3
